Cogmind - Beta 10.1 *** ADVENTURER MODE // 2020.09.24 @ 18:21:37 Player: Plarzay Result: Destroyed by D-53 Grenadier with Mini Grenade Launcher Performance ------------- Evolutions (1) 500 Regions Visited (4) 800 Robots Destroyed (36) 180 Value Destroyed (779) 779 Prototype IDs (0) 0 Alien Tech Used (0) 0 Bonus (0) 0 TOTAL SCORE: 2259 Bonus ------- None Cogmind --------- Core Integrity 0/400 Matter 34/300 Energy 100/100 System Corruption 0% Temperature Cool (0) Movement Core (550) Ox10 Location -9/Mines Parts ------- > --- POWER (1) -------- (None) > --- PROPULSION (2) --- (None) > --- UTILITY (4) ------ Large Storage Unit Large Storage Unit Signal Interpreter > --- WEAPON (2) ------- (None) > --- INVENTORY (16) --- Aluminum Leg Compact Wheel Compact Wheel Visual Processing Unit Peak State ------------ > --- POWER ------------ Improved Ion Engine > --- PROPULSION ------- Aluminum Leg Aluminum Leg > --- UTILITY ---------- Large Storage Unit Large Storage Unit Sensor Array Signal Interpreter > --- WEAPON ----------- EMP Blaster Rocket Launcher > --- INVENTORY -------- Ion Engine Ion Engine Aluminum Leg Aluminum Leg Aluminum Leg Aluminum Leg Compact Wheel Compact Wheel Heat Sink Visual Processing Unit Welding Torch [Rating: 13] Favorites ----------- Power Light Ion Engine Engine Light Ion Engine Propulsion Aluminum Leg Leg Aluminum Leg Wheel Compact Wheel Utility Large Storage Unit Device Sensor Array Storage Large Storage Unit Processor Signal Interpreter Weapon Rocket Launcher Energy Gun Small Laser Ballistic Gun Light Assault Rifle Launcher Rocket Launcher Special Weapon Welding Torch Build | -11 -10 -10 -9 -9 ------- Run | Scr Mat Min Mat Min Slots Evolved 2 | . . . 2 . Power . | . . . . . Propulsion . | . . . . . Utility 2 | . . . 2 . Weapon . | . . . . . Parts Attached 32 | 6 5 . 9 12 Power 5 | 1 . . 2 2 Engine 5 | 1 . . 2 2 Core . | . . . . . Reactor . | . . . . . Propulsion 9 | 2 2 . 1 4 Treads . | . . . . . Leg 7 | . 2 . 1 4 Wheel 2 | 2 . . . . Hover . | . . . . . Flight . | . . . . . Utility 8 | 1 2 . 4 1 Device 4 | . 1 . 2 1 Storage 3 | 1 . . 2 . Processor 1 | . 1 . . . Hackware . | . . . . . Protection . | . . . . . Artifact . | . . . . . Weapon 10 | 2 1 . 2 5 Energy Gun 4 | 1 1 . . 2 Energy Cannon . | . . . . . Ballistic Gun 1 | 1 . . . . Ballistic Cannon . | . . . . . Launcher 4 | . . . 2 2 Special Weapon 1 | . . . . 1 Impact Weapon . | . . . . . Slashing Weapon . | . . . . . Piercing Weapon . | . . . . . Special Melee Weapon . | . . . . . Unidentified Prototypes . | . . . . . Parts Lost 20 | . 2 . 2 16 Power 4 | . . . 1 3 Propulsion 6 | . . . . 6 Utility 2 | . . . . 2 Weapon 8 | . 2 . 1 5 Highest Loss Streak 10 | . 2 . 1 10 Average Slot Usage (%) 89 | . 91 85 89 88 Engine 11 | . 14 14 10 9 Leg 19 | . 3 28 22 19 Wheel 3 | . 24 . . . Device 9 | . 7 . 11 10 Storage 19 | . 14 14 21 22 Processor 9 | . 1 14 11 11 Energy Gun 6 | . 13 14 5 1 Ballistic Gun 1 | . 11 . . . Launcher 7 | . . . 7 13 Naked Turns . | . . . . . Heaviest Build 48 | 10 11 8 48 46 Greatest Support 32 | 32 32 20 20 20 Greatest Overweight (x) 10 | . . . 2 10 Average Overweight (x) 1 | . . . 1 1 Largest Inventory Capacity 16 | 6 6 6 16 16 Average Capacity 12 | 5 6 6 15 16 Most Carried 13 | 5 6 5 13 13 Average Carried 7 | 2 4 5 8 8 Final Capacity 16 | 6 6 6 16 16 Final Carried 13 | 4 5 5 13 4 Class Distribution -------------------- 79% | Mutant 20% | Scavenger-Mutant Dominant Class ---------------- Mutant | -10/Materials Mutant | -10/Mines Mutant | -9/Materials Scavenger-Mutant | -9/Mines Resources | -11 -10 -10 -9 -9 ----------- Run | Scr Mat Min Mat Min Matter Collected 439 | 175 100 . 132 32 Remotely . | . . . . . Salvage Created 893 | . 180 . 468 245 Parts 45 | . 10 . 31 4 Haulers Intercepted . | . . . . . Recyclers Shooed . | . . . . . Parts Field Recycled . | . . . . . Retrieved Matter . | . . . . . Parts Self-Destructed . | . . . . . Prevented . | . . . . . Kills | -11 -10 -10 -9 -9 ------- Run | Scr Mat Min Mat Min Combat Hostiles Destroyed 32 | . 4 . 12 16 Guns 8 | . 4 . 3 1 AOE 24 | . . . 9 15 Classes Destroyed 7 | . 1 . 5 1 Builder 1 | . . . 1 . Recycler 2 | . . . 2 . Watcher 1 | . . . 1 . Grunt 16 | . 4 . 9 3 Brawler 1 | . . . 1 . Sentry 2 | . . . 2 . Assembled 13 | . . . . 13 Best Kill Streak 13 | . 3 . 5 13 Combat Bots Only 13 | . 3 . 4 13 Max Kills in Single Turn 5 | . 1 . 4 5 Gunslinging . | . . . . . Exploded 5 | . . . 3 5 Melee . | . . . . . Uniques/NPCs Destroyed . | . . . . . Combat | -11 -10 -10 -9 -9 -------- Run | Scr Mat Min Mat Min Damage Taken 1927 | . 232 . 460 1235 Core 429 | . 25 . 81 323 Absorbed by Shields . | . . . . . Core Remaining (%) 95 | 100 . 90 . . Volleys Fired 68 | . 17 . 32 19 Largest 2 | . 2 . 2 2 Hottest 96 | . 60 . 66 96 Shots Fired 86 | . 30 . 33 23 Gun 53 | . 30 . 15 8 Cannon . | . . . . . Launcher 30 | . . . 18 12 Special 3 | . . . . 3 Kinetic 14 | . 14 . . . Thermal 31 | . 5 . 15 11 Explosive 22 | . . . 17 5 Electromagnetic 19 | . 11 . 1 7 Robot Hit Streak 26 | . 26 . 18 10 Robot Miss Streak 2 | . 1 . 2 1 Penetration Max . | . . . . . Secondary Targets 2 | . 2 . . . Max Gunslinging Chain 1 | . 1 . . . Shots Hit Robots 76 | . 29 . 29 18 Core Hits 72 | . 8 . 35 29 Critical Hits . | . . . . . Critical Kills . | . . . . . Critical Parts Destroyed . | . . . . . Melee Attacks . | . . . . . Impact . | . . . . . Slashing . | . . . . . Piercing . | . . . . . Sneak Attacks . | . . . . . Combat Hostiles . | . . . . . Follow-up Attacks . | . . . . . Damage Inflicted 2662 | . 311 . 1292 1059 Guns 560 | . 311 . 155 94 Cannons . | . . . . . Explosions 2092 | . . . 1133 959 Melee . | . . . . . Ramming 4 | . . . 4 . Kinetic 103 | . 103 . . . Thermal 311 | . 56 . 155 100 Explosive 1631 | . . . 1117 514 Electromagnetic 613 | . 152 . 16 445 Impact . | . . . . . Slashing . | . . . . . Piercing . | . . . . . Highest Corruption . | . . . . . Average Corruption . | . . . . . Corruption Purged . | . . . . . Overload Shots . | . . . . . Overflow Damage 161 | . . . 119 42 Projectiles . | . . . . . Explosions 161 | . . . 119 42 Melee . | . . . . . Knockbacks . | . . . . . Impact . | . . . . . Kinetic . | . . . . . Secondary . | . . . . . Self-Inflicted Damage 201 | . . . 114 87 Shots 12 | . . . 5 7 Rammed . | . . . . . Targets Rammed 1 | . . . 1 . Kicked 1 | . . . 1 . Crushed . | . . . . . Highest Temperature 48 | . 32 . 6 48 Average Temperature 14 | . 13 . 3 24 Received Heat Transfer 668 | . 168 . 189 311 Siege Activations . | . . . . . Robots Corrupted . | . . . . . Combat Hostiles . | . . . . . Parts Fried . | . . . . . Impact Corruptions . | . . . . . Robots Melted . | . . . . . Combat Hostiles . | . . . . . Parts Melted 2 | . . . 1 1 Heat Transferred 774 | . 125 . 375 274 Parts Sabotaged . | . . . . . Parts Stolen . | . . . . . Parts Stripped . | . . . . . Power Chain Reactions . | . . . . . Missiles Intercepted . | . . . . . Alert | -11 -10 -10 -9 -9 ------- Run | Scr Mat Min Mat Min Peak Influence 260 | . 74 24 260 92 Initial 73 | . . 24 7 73 Average 79 | . 27 24 112 78 Maximum Alert Level 1 | . . . 1 . Low Security (%) 94 | 100 100 100 88 100 Level 1 5 | . . . 11 . Level 2 . | . . . . . Level 3 . | . . . . . Level 4 . | . . . . . Level 5 . | . . . . . High Security . | . . . . . Max Security . | . . . . . Squads Dispatched 4 | . 1 . 3 . Investigation 2 | . 1 . 1 . Extermination . | . . . . . Reinforcement 2 | . . . 2 . Assault . | . . . . . Garrison . | . . . . . Intercept . | . . . . . Construction Impeded 1 | . . . 1 . Haulers Reinforced . | . . . . . Stealth | -11 -10 -10 -9 -9 --------- Run | Scr Mat Min Mat Min Distress Signals . | . . . . . Communications Jammed . | . . . . . Distress Signals . | . . . . . Times Spotted 48 | . 4 . 17 27 Peak Tracking Total 17 | . 3 . 5 17 Tactical Retreats 1 | . . . . 1 Traps | -11 -10 -10 -9 -9 ------- Run | Scr Mat Min Mat Min Traps Triggered 2 | . 1 . 1 . Indirectly . | . . . . . Trap Hack Attempts . | . . . . . Triggered . | . . . . . Disarmed . | . . . . . Reprogrammed . | . . . . . Reused . | . . . . . Traps Extracted . | . . . . . Installed . | . . . . . Triggered . | . . . . . Machines | -11 -10 -10 -9 -9 ---------- Run | Scr Mat Min Mat Min Machines Disabled 5 | . . . 4 1 Max in Single Turn 2 | . . . 2 1 Machines Sabotaged . | . . . . . Garrisons Compromised . | . . . . . Overloaded Fab Kills . | . . . . . Fab Network Shutdowns . | . . . . . Hacking | -11 -10 -10 -9 -9 --------- Run | Scr Mat Min Mat Min Machines Accessed 5 | . 1 . 4 . Terminals 4 | . 1 . 3 . Fabricators . | . . . . . Repair Stations 1 | . . . 1 . Recycling Units . | . . . . . Scanalyzers . | . . . . . Garrison Access . | . . . . . Total Hacks 12 | . 5 . 7 . Successful 7 | . 2 . 5 . Failed 5 | . 3 . 2 . Catastrophic . | . . . . . Database Lockouts . | . . . . . Manual 7 | . 2 . 5 . Terminals 10 | . 5 . 5 . Fabricators . | . . . . . Repair Stations 2 | . . . 2 . Recycling Units . | . . . . . Scanalyzers . | . . . . . Garrison Access . | . . . . . Terminal Hacks 1 | . 1 . . . Zone Layout 1 | . 1 . . . Fabricator Hacks . | . . . . . Repair Station Hacks 2 | . . . 2 . Scan Component 1 | . . . 1 . Repair 1 | . . . 1 . Recycling Unit Hacks . | . . . . . Scanalyzer . | . . . . . Garrison Access Hacks . | . . . . . Unauthorized Hacks 4 | . 1 . 3 . Terminals 4 | . 1 . 3 . Botnet 4 | . 1 . 3 . Fabricators . | . . . . . Repair Stations . | . . . . . Recycling Units . | . . . . . Scanalyzers . | . . . . . Garrison Access . | . . . . . Data Cores Recovered . | . . . . . Used . | . . . . . Hacking Detections 2 | . 1 . 1 . Full Trace Events . | . . . . . Feedback Events . | . . . . . Feedback Blocked . | . . . . . Robot Schematics Acquired . | . . . . . Robots Built . | . . . . . Matter . | . . . . . Time . | . . . . . Total Robot Build Rating . | . . . . . Part Schematics Acquired . | . . . . . Parts Built . | . . . . . Matter . | . . . . . Time . | . . . . . Total Part Build Rating . | . . . . . Parts Repaired 1 | . . . 1 . Time 26 | . . . 26 . Parts Recycled . | . . . . . Recycled Matter . | . . . . . Retrieved Matter . | . . . . . Retrieved Components . | . . . . . Parts Scanalyzed . | . . . . . Part Schematics Acquired . | . . . . . Parts Damaged . | . . . . . Bothacking | -11 -10 -10 -9 -9 ------------ Run | Scr Mat Min Mat Min Used RIF Installer . | . . . . . Robots Hacked . | . . . . . Non-combat . | . . . . . Combat . | . . . . . Robot Hacks Applied . | . . . . . Relay Couplers Released . | . . . . . Robots Rewired . | . . . . . Allies Hacked . | . . . . . Hacks Repelled . | . . . . . Allies | -11 -10 -10 -9 -9 -------- Run | Scr Mat Min Mat Min Total Allies . | . . . . . Largest Group . | . . . . . Highest-Rated Group . | . . . . . Highest-Rated Ally . | . . . . . Total Orders . | . . . . . Ally Attacks . | . . . . . Total Damage . | . . . . . Kills . | . . . . . Allies Corrupted . | . . . . . Allies Melted . | . . . . . Intel | -11 -10 -10 -9 -9 ------- Run | Scr Mat Min Mat Min Robot Analysis Total . | . . . . . Derelict Logs Recovered 1 | . . 1 . . Drone Launches . | . . . . . Drone Recoveries . | . . . . . Exploration | -11 -10 -10 -9 -9 ------------- Run | Scr Mat Min Mat Min Turns Passed 1039 | 45 155 95 509 235 Spaces Moved 522 | 32 89 75 226 100 Core 5 | 4 . . . 1 Treads . | . . . . . Legs 410 | . 10 75 226 99 Wheels 107 | 28 79 . . . Hover . | . . . . . Flight . | . . . . . Fastest Speed 50 | 50 100 120 120 150 Average Speed 147 | 93 102 120 167 178 Slowest Speed 550 | 100 120 120 180 550 Overloaded Moves . | . . . . . Propulsion Burnouts . | . . . . . Robots Hopped . | . . . . . Cave-ins Triggered . | . . . . . Exploration Rate (%) 22 | 3 21 23 28 37 Regions Visited 4 Branch Regions 2 Pre-discovered Areas 1 | . . 1 . . Known Exits Taken 3 | . 1 1 1 . Unknown Exits Taken 1 | 1 . . . . Scrap Searched . | . . . . . Spaces Dug . | . . . . . Terrain Destroyed 148 | . . . 115 33 Melee . | . . . . . Projectile . | . . . . . AOE 148 | . . . 115 33 Terrain Rammed . | . . . . . Walls Destroyed . | . . . . . Machines Disabled . | . . . . . Actions | -11 -10 -10 -9 -9 --------- Run | Scr Mat Min Mat Min Total 704 | 47 124 80 321 132 Wait 55 | . 11 6 38 . Move 518 | 31 88 74 225 100 Hop . | . . . . . Pick Up 29 | 10 3 . 15 1 Fast Attach . | . . . . . Attach 23 | 6 2 . 5 10 Detach . | . . . . . Swap 9 | . 3 . 4 2 Drop 1 | . . . 1 . Fire 68 | . 17 . 32 19 Melee . | . . . . . Ram . | . . . . . Kick 1 | . . . 1 . Crush . | . . . . . Escape Stasis . | . . . . . Rewire . | . . . . . Trap . | . . . . . Miscellaneous . | . . . . . Route ------- -11/Scrapyard -10/Materials -10/Mines (discovered 2 exits: *Mat / Exi) -9/Materials (discovered 2 exits: *Mat / *Min) -9/Mines History --------- Turn | Location | Event 23 | -11/Scrapyard | Discovered new exit (range 16) 46 | -11/Scrapyard | Entered Materials 98 | -10/Materials | Discovered new exit (range 10) 200 | -10/Materials | Identified exit to Mines 201 | -10/Materials | Entered Mines 246 | -10/Mines | Learned location of Storage (-8) 248 | -10/Mines | Identified exit to Exiles 285 | -10/Mines | Discovered new exit (range 9) 295 | -10/Mines | Identified exit to Materials 296 | -10/Mines | Entered Materials 296 | -9/Materials | Evolved 2 slots: Utility x2 335 | -9/Materials | Build established: Mutant 505 | -9/Materials | Discovered new exit (range 16) 555 | -9/Materials | Identified exit to Materials 644 | -9/Materials | Repaired Heat Sink 769 | -9/Materials | Discovered new exit (range 13) 801 | -9/Materials | Identified exit to Mines 805 | -9/Materials | Entered Mines 860 | -9/Mines | Lost 6 parts (1p2n1u2w) 959 | -9/Mines | Assembled infested the area 1000 | -9/Mines | Destroyed 13 combat bots 1012 | -9/Mines | Core integrity fell below 50% 1033 | -9/Mines | Core integrity fell below 20% 1040 | -9/Mines | Destroyed by D-53 Grenadier with Mini Grenade Launcher Last Messages --------------- 01005_ D-53 Grenadier unfolds itself. 01007_ Welding Torch destroyed. 01011_ as-84517 destroyed. 01011_ Ion Engine destroyed. 01011_ as-80221 destroyed. 01013_ as-73900 destroyed. 01013_ as-10121 destroyed. 01013_ as-51843 destroyed. 01020_ Aluminum Leg destroyed. 01021_ The unstable cave ceiling collapses. 01021_ Aluminum Leg destroyed. 01025_ The unstable cave ceiling collapses. 01027_ Ion Engine destroyed. 01029_ K-01 Serf collects debris. 01032_ The unstable cave ceiling collapses. 01033_ Aluminum Leg destroyed. 01034_ The unstable cave ceiling collapses. 01035_ Heat Sink destroyed. 01035_ Aluminum Leg destroyed. 01036_ The unstable cave ceiling collapses. Map ----- +----------------------------------------------------+ | | | | | | | | | | | | | | | | | ?????????????????????????????????????????????????? | | ?????????????????????????????????????????????????? | | ?????????????????????????????????????????????????? | | ?????????????????????????????????????????????????? | | ?????????????????????????????????????????????????? | | ?????????????????????????????????????????????????? | | ?????????????????????????????????????????????????? | | ?????????????????????????????????????????????????? | | ?????????????????????????????????????????????????? | | ?????????????????????????????????????????????????? | | ?????????????????????????????????????????????????? | | ?????????????????????????????#######?????????????? | | ??????????????????????######## ####????????### | | ???????????????## ???## # # ###??##?## | | ???????????????# ## # #### | | ???????????????# # | | ????????????????# d | | ?????????????????# @ d % | | ?????????????????## | | ??????????????????# # | | ?????????????????# # # ### | | ????????????????# ?## # ### ###?## ### | | ???????????????# ????#### #??##?????###??## | | ???????????????# ??????? #???????????????## | | ??????????????????????? ##????????????????# | | ?????????????????????? #?????????????????# | | ?????????????????????## ## ?????????????????# | | ??????????????????????# ?## ?????????????????# | | ??????????????????????# ???## ????????????????# | | ??????????????????????# ????? ????????????????# | | ??????????????????????#?????? ???????????????# | | ????????????????????????????? ??########????### | | ????????????????????????????????## ##??## | | ????????????????????????????????# """ #### | | ????????????????????????????????# """ ## | | ????????????????????????????????# """ | | ?????????????????????????????????# | | ?????????????????????????????????## | | ??????????????????????????????????# # | | ??????????????????????????????????# ##### # | | ??????????????????????????????????## ##???## | | ???????????????????????????????????# ##?????## | +----------------------------------------------------+ Best States ------------- Heat Dissipation 38 Energy Generation 12 Energy Capacity 265 Matter Stores 300 Matter Capacity 300 Sight Range 16 Robot Scan Range 10 Terrain Scan Density 10 Resistance: KI 20 Resistance: TH 20 Resistance: EX 20 Resistance: EM 20 Resistance: I 20 Resistance: S 20 Resistance: P 20 Evasion (%) 40 Offensive Hacking 10 Item Schematics ----------------- None Robot Schematics ------------------ None Fabricated ------------ Nothing Alien Tech Used ----------------- None Achievements -------------- None Challenges ------------ None Game ------ Seed DecoyHugeCorpse Manual? 0 Play Time 00:17:39 Cumulative 40.3 hours Start 2020.09.23 @ 17:43:53 End 2020.09.24 @ 18:21:37 Sessions 3 Manual Loads 0 Difficulty Adventurer Special Mode None Game No. 30 Rogue 10 Adventurer 20 Explorer 0 Win Type - Total 0 Types 0/0/0/0/0/0/0/0/0 Lore% 28 Gallery% 42 Achievement% 31 Wizard Run 0 Options --------- ASCII 0 Keyboard 0 Movement Mouse Keybinds 0 Fullscreen 1 Font 18/SmallcapsGlow Map View 76x50 Tactical HUD 1 Map Filters NONE Filters NONE Steam 1 RUN: 8ca97076-a817-45ef-bb25-6ea1628ab82a